bitfinex/quotes_BTCUSD_20251104
["timestamp","ask_amount","ask_price","bid_price","bid_amount"]
[1762286811317,3.65433454,100580.0,100570.0,0.0017448]
[1762286812293,3.65033454,100580.0,100570.0,0.0017448]
[1762286812507,3.65233454,100580.0,100570.0,0.0017448]
[1762286812715,3.71492771,100580.0,100570.0,0.0017448]
[1762286812916,3.68651682,100580.0,100570.0,0.0017448]
[1762286813127,3.69651681,100580.0,100570.0,0.0017448]
[1762286813335,3.74651791,100580.0,100570.0,0.0017448]
[1762286813500,3.74651791,100580.0,100570.0,1e-08]
[1762286813699,3.75051791,100580.0,100570.0,1e-08]
[1762286814315,3.70051791,100580.0,100570.0,1e-08]
[1762286814524,3.75051791,100580.0,100570.0,1e-08]
[1762286814924,0.19888623,100560.0,100550.0,0.01059]
[1762286815127,0.55720519,100560.0,100550.0,0.01059]
[1762286815332,0.55720519,100560.0,100550.0,0.16563]
[1762286815545,0.58707955,100560.0,100550.0,0.16563]
[1762286815949,0.58707955,100560.0,100550.0,0.07168]
[1762286816150,0.56876059,100560.0,100550.0,0.07168]
[1762286817905,0.22876059,100560.0,100550.0,0.07168]
[1762286818321,0.19888426,100570.0,100550.0,0.36453601]
[1762286818525,0.19888426,100570.0,100560.0,0.06109]
[1762286818727,0.19888623,100560.0,100550.0,0.10458]
[1762286819171,0.19888623,100560.0,100550.0,0.16567]
[1762286819535,0.19888623,100560.0,100550.0,0.07172]
[1762286819749,0.2779263,100570.0,100550.0,0.16767]
[1762286820372,0.2779263,100570.0,100550.0,0.36657009]
[1762286820739,0.2287563,100570.0,100560.0,0.05857]
[1762286820947,0.5687563,100570.0,100560.0,0.15252]
[1762286821383,0.24006826,100590.0,100560.0,0.36368585]
[1762286821597,1.498886,100570.0,100560.0,0.20878828]
[1762286821862,1.500886,100570.0,100560.0,0.05796205]
[1762286822077,1.498886,100570.0,100560.0,0.41188828]
[1762286822292,1.498886,100570.0,100560.0,1.10684344]
[1762286822510,1.498886,100570.0,100560.0,1.20640041]
[1762286822728,0.115876,100570.0,100560.0,2.30612688]
[1762286822937,0.087506,100570.0,100560.0,2.30612688]
[1762286823147,0.087506,100570.0,100560.0,0.91821656]
[1762286823366,0.087506,100570.0,100560.0,2.30612688]
[1762286823586,0.07902667,100630.0,100610.0,0.19878654]
[1762286823797,0.5388944,100630.0,100620.0,0.09014]
[1762286824021,0.19889338,100630.0,100620.0,0.09014]
[1762286824237,0.19876764,100620.0,100610.0,0.03895205]
[1762286824874,0.19878739,100610.0,100600.0,0.02905]
[1762286825299,0.58795739,100610.0,100600.0,0.02905]
[1762286825513,0.19880715,100600.0,100590.0,0.03895205]
[1762286825727,0.53880715,100600.0,100590.0,0.03895205]
[1762286825931,0.22044441,100620.0,100590.0,0.36709613]
[1762286826156,0.34,100610.0,100600.0,0.09795]
[1762286826362,0.53878739,100610.0,100600.0,0.09795]
[1762286826579,0.34,100610.0,100600.0,0.15504]
[1762286826789,0.53878739,100610.0,100600.0,0.15504]
[1762286827018,0.34,100620.0,100600.0,0.37244016]
[1762286827227,0.53876875,100620.0,100610.0,0.10538]
[1762286827451,0.19878739,100610.0,100600.0,0.09395]
[1762286827658,0.19878739,100610.0,100600.0,0.01857719]
[1762286827888,0.53876875,100620.0,100600.0,0.07966719]
[1762286828096,0.53876875,100620.0,100600.0,0.27847143]
[1762286828272,0.53876764,100620.0,100610.0,0.01468]
[1762286828501,0.53876764,100620.0,100610.0,0.03325719]
[1762286828726,0.53876764,100620.0,100610.0,0.01857719]
[1762286828937,0.53876764,100620.0,100610.0,0.07966719]
[1762286829329,0.53876764,100620.0,100610.0,0.17361719]
[1762286829573,0.19876764,100620.0,100610.0,0.18351924]
[1762286829825,0.5505543,100630.0,100610.0,0.3823065]
[1762286830036,0.0001455,100630.0,100620.0,0.10616]
[1762286830246,0.53889338,100630.0,100620.0,0.10616]
[1762286830458,0.3401455,100630.0,100620.0,0.30492764]
[1762286830673,0.3401455,100630.0,100620.0,0.12470435]
[1762286831098,0.3401455,100630.0,100620.0,0.12470355]
[1762286831344,0.3401455,100630.0,100620.0,0.12836393]
[1762286831541,0.0001455,100630.0,100620.0,0.32713157]
[1762286831768,0.0001455,100630.0,100620.0,0.12470355]
[1762286832032,0.0001455,100630.0,100620.0,0.3724028]
[1762286832265,0.0001455,100630.0,100620.0,1.18771397]
[1762286832698,0.02984431,100660.0,100650.0,0.19870839]
[1762286832910,0.22047209,100680.0,100650.0,0.35917044]
[1762286833160,0.03032373,100680.0,100670.0,0.04792]
[1762286833361,0.00048556,100680.0,100670.0,0.21268205]
[1762286833803,0.00048556,100680.0,100670.0,0.41135096]
[1762286834022,0.00048556,100680.0,100670.0,1.15248839]
[1762286835065,0.00048556,100680.0,100670.0,0.45753323]
[1762286835286,0.00048556,100680.0,100670.0,1.16048839]
[1762286835287,0.00148556,100680.0,100670.0,1.16048839]
[1762286835493,0.00148556,100680.0,100670.0,0.5650902]
[1762286835712,0.00148556,100680.0,100670.0,0.46553323]
[1762286835916,0.00148556,100680.0,100670.0,1.16048839]
[1762286836349,0.00148556,100680.0,100670.0,1.1504884]
[1762286836560,0.00148556,100680.0,100670.0,1.16048839]
[1762286836763,0.00148556,100680.0,100670.0,1.26004536]
[1762286837231,0.00148556,100680.0,100670.0,0.53046614]
[1762286837842,0.00148556,100680.0,100670.0,1.57542129]
[1762286838058,0.0004,100690.0,100680.0,0.58483145]
[1762286838287,0.00054554,100690.0,100680.0,2.17426782]
[1762286838490,0.05370558,100700.0,100690.0,0.58481172]
[1762286838667,0.05370558,100700.0,100690.0,0.87696074]
[1762286838881,0.05370558,100700.0,100690.0,1.6168759]
[1762286839919,0.05370558,100700.0,100690.0,1.13235893]
[1762286840533,0.05370558,100700.0,100690.0,1.47235893]
[1762286840732,0.05370558,100700.0,100690.0,1.48035893]
[1762286841396,0.0004,100710.0,100700.0,0.584792]
[1762286841610,0.0004,100710.0,100700.0,1.52456321]
[1762286841821,0.0004,100710.0,100700.0,1.62412018]
[1762286842044,0.00065273,100710.0,100700.0,1.62412018]
[1762286842253,0.00019273,100710.0,100700.0,1.62412018]
[1762286843161,0.00019273,100710.0,100700.0,0.90425053]
[1762286843359,0.00019273,100710.0,100700.0,1.25920569]
[1762286843577,0.00019273,100710.0,100700.0,0.55425054]
[1762286843793,0.00019273,100710.0,100700.0,0.30073973]
[1762286843999,0.00019273,100710.0,100700.0,1.09746094]
[1762286844209,0.00019273,100710.0,100700.0,1.19701791]
[1762286844428,0.00019273,100710.0,100700.0,1.23320019]
[1762286844691,0.00019273,100710.0,100700.0,1.24320018]
[1762286845530,0.00019273,100710.0,100700.0,1.14364321]
[1762286845738,0.00019273,100710.0,100700.0,0.34092201]
[1762286845952,0.00019273,100710.0,100700.0,0.10613]
[1762286846154,0.00019273,100710.0,100700.0,0.30473973]
[1762286846581,0.00019273,100710.0,100700.0,1.47364322]
[1762286846785,0.00019273,100710.0,100700.0,1.58320018]
[1762286847255,0.00890069,100730.0,100720.0,0.19857029]
[1762286847437,0.00890069,100730.0,100720.0,0.37163234]
[1762286847438,0.00904618,100730.0,100720.0,0.37163234]
[1762286848298,0.00904618,100730.0,100720.0,0.20924433]
[1762286848526,0.00904618,100730.0,100720.0,0.21024433]
[1762286848733,0.00904618,100730.0,100720.0,0.40881462]
[1762286848940,0.00904618,100730.0,100720.0,0.37263234]
[1762286849332,0.00904618,100730.0,100720.0,0.17406205]
[1762286849333,0.20759676,100730.0,100720.0,0.17406205]
[1762286849593,0.00904618,100730.0,100720.0,0.17406205]
[1762286849810,0.00904618,100730.0,100720.0,0.38862969]
[1762286850016,0.00904618,100730.0,100720.0,0.37263234]
[1762286850227,0.54759676,100730.0,100720.0,0.17406205]
[1762286850444,0.54759676,100730.0,100720.0,0.08202205]
[1762286850675,0.54759676,100730.0,100720.0,0.17406205]
[1762286850914,0.00904618,100730.0,100720.0,0.37263234]
[1762286851145,0.00904618,100730.0,100720.0,0.40881462]
[1762286851354,0.00904618,100730.0,100720.0,0.21024433]
[1762286851779,0.00904618,100730.0,100720.0,0.40881462]
[1762286851981,0.00904618,100730.0,100720.0,0.21024433]
[1762286852272,0.00904618,100730.0,100720.0,0.17406205]
[1762286852507,0.00904618,100730.0,100720.0,0.37263234]
[1762286852716,0.00904618,100730.0,100720.0,0.17406205]
[1762286853132,0.00955149,100730.0,100720.0,0.37263234]
[1762286853751,0.00955149,100730.0,100720.0,0.37163234]
[1762286854120,0.01255149,100730.0,100720.0,0.46483575]
[1762286854321,0.01255149,100730.0,100720.0,0.40781462]
[1762286854526,0.00955149,100730.0,100720.0,0.40781462]
[1762286854734,0.01055149,100730.0,100720.0,0.40781462]
[1762286855353,0.54883805,100750.0,100740.0,0.19853087]
[1762286855354,0.0004,100750.0,100740.0,0.19853087]
[1762286855557,0.0004,100750.0,100740.0,0.21710292]
[1762286855771,0.0004,100750.0,100740.0,0.31165292]
[1762286856225,0.0004,100750.0,100740.0,0.3478352]
[1762286856867,0.0014,100750.0,100740.0,0.14930433]
[1762286857078,0.19991116,100750.0,100740.0,0.01857205]
[1762286857321,0.0014,100750.0,100740.0,0.11312205]
[1762286857588,0.19991116,100750.0,100740.0,0.11312205]
[1762286857793,0.53991116,100750.0,100740.0,0.00990205]
[1762286858030,0.19855058,100730.0,100720.0,0.11485205]
[1762286858247,0.19854813,100740.0,100720.0,0.37750935]
[1762286858447,0.19854813,100740.0,100720.0,0.11485205]
[1762286858666,0.54983671,100750.0,100730.0,0.06409]
[1762286858870,0.19853087,100740.0,100730.0,0.06409]
[1762286859300,0.19855058,100730.0,100720.0,0.02030205]
[1762286859507,0.19853087,100740.0,100720.0,0.11485205]
[1762286859720,0.19855058,100730.0,100720.0,0.17894205]
[1762286860148,0.20153087,100740.0,100720.0,0.37751204]
[1762286860379,0.19855058,100730.0,100720.0,0.17894205]
[1762286860748,0.19855058,100730.0,100720.0,0.02030205]
[1762286860950,0.24400058,100730.0,100720.0,0.02030205]
[1762286861161,0.24400058,100730.0,100700.0,0.24471846]
[1762286861162,0.19858873,100720.0,100700.0,0.00990205]
[1762286861375,0.19859001,100710.0,100700.0,0.01004754]
[1762286861581,0.19859001,100710.0,100700.0,0.15961549]
[1762286861778,0.19859001,100710.0,100700.0,0.06153549]
[1762286861989,0.19858873,100720.0,100700.0,0.15961549]
[1762286862194,0.19859001,100710.0,100700.0,0.15961549]
[1762286862415,0.19859001,100710.0,100700.0,0.00014549]
[1762286862837,0.21141103,100710.0,100700.0,0.00014549]
[1762286863038,0.35554103,100710.0,100700.0,0.00014549]
[1762286863250,0.35454103,100710.0,100700.0,0.00014549]
[1762286863478,3.35454103,100710.0,100700.0,0.00014549]
[1762286863714,3.35754103,100710.0,100700.0,0.00014549]
[1762286864151,3.69754103,100710.0,100700.0,0.00014549]
[1762286864592,3.72737472,100710.0,100700.0,0.00014549]
[1762286865085,3.72437472,100710.0,100700.0,2.005e-05]
[1762286865311,3.83055698,100710.0,100700.0,2.005e-05]
[1762286865522,0.19868865,100660.0,100650.0,0.02885]
[1762286865736,0.19868865,100660.0,100650.0,0.02933556]
[1762286866585,0.20468865,100660.0,100650.0,0.02933556]
[1762286866997,0.19868865,100660.0,100650.0,0.02933556]
[1762286867219,0.54268865,100660.0,100650.0,0.02933556]
[1762286867785,0.60429865,100660.0,100650.0,0.00048556]
[1762286868412,0.54268865,100660.0,100650.0,0.00048556]
[1762286868615,0.69481865,100660.0,100650.0,0.00048556]
[1762286868801,0.60429865,100660.0,100650.0,0.00048556]
[1762286869114,0.69481865,100660.0,100650.0,0.00048556]
[1762286870214,3.69481865,100660.0,100650.0,0.00048556]
[1762286871601,3.69081865,100660.0,100650.0,0.00048556]
[1762286872023,3.69781865,100660.0,100650.0,0.00048556]
[1762286872249,3.69081865,100660.0,100650.0,0.00048556]
[1762286872647,3.69981865,100660.0,100650.0,0.00048556]
[1762286873037,3.72966938,100660.0,100650.0,0.00052556]
[1762286873416,0.72966938,100660.0,100650.0,0.00052556]
[1762286873730,0.72966938,100660.0,100650.0,0.00056556]
[1762286874260,3.72966938,100660.0,100650.0,0.00056556]
[1762286874673,3.73966937,100660.0,100650.0,0.00056556]
[1762286877034,3.78585164,100660.0,100650.0,1e-08]
[1762286877271,0.19878739,100610.0,100600.0,0.00370634]
[1762286877408,0.22950739,100610.0,100600.0,0.00385188]
[1762286877635,0.29111739,100610.0,100600.0,0.00385188]
[1762286878014,0.38676739,100610.0,100600.0,0.00385188]
[1762286878215,0.22950739,100610.0,100600.0,0.00385188]
[1762286878436,0.72676739,100610.0,100600.0,0.00385188]
[1762286878633,0.64244735,100610.0,100600.0,0.00385188]
[1762286878852,0.58083735,100610.0,100600.0,0.00385188]
[1762286879478,0.64244735,100610.0,100600.0,0.00385188]
[1762286880150,0.73809735,100610.0,100600.0,0.00385188]
[1762286880590,3.73809735,100610.0,100600.0,0.00385188]
[1762286880708,3.76511778,100610.0,100600.0,0.00385188]
[1762286880909,3.77511777,100610.0,100600.0,0.00385188]
[1762286881122,3.73809735,100610.0,100600.0,0.00385188]
[1762286881348,3.74809734,100610.0,100600.0,0.00385188]
[1762286881546,3.73809735,100610.0,100600.0,0.00385188]
[1762286881925,3.73809735,100610.0,100600.0,0.00585188]
[1762286882042,3.71321162,100610.0,100600.0,0.00385188]
[1762286882447,3.72421161,100610.0,100600.0,0.00385188]
[1762286882652,3.76039389,100610.0,100600.0,0.00385188]
[1762286882935,3.81039389,100610.0,100600.0,0.00385188]
[1762286883155,3.76039389,100610.0,100600.0,0.00385188]
[1762286883375,3.7503939,100610.0,100600.0,0.00385188]
[1762286883583,3.77039388,100610.0,100600.0,1e-08]
[1762286883799,3.82039388,100610.0,100600.0,1e-08]
[1762286884674,3.81039389,100610.0,100600.0,1e-08]
[1762286884885,3.77039388,100610.0,100600.0,1e-08]
[1762286885090,3.82039388,100610.0,100600.0,1e-08]
[1762286885323,3.66984918,100590.0,100580.0,1e-08]
[1762286885565,0.53888623,100560.0,100550.0,4e-05]
[1762286885734,0.60016623,100560.0,100550.0,0.0001855]
[1762286885973,0.69581623,100560.0,100550.0,0.0001855]
[1762286887679,0.60016623,100560.0,100550.0,0.0001855]
[1762286887910,0.53888623,100560.0,100550.0,0.0490355]
[1762286888119,0.34,100560.0,100550.0,0.1104255]
[1762286888364,0.69614623,100560.0,100550.0,0.0031855]
[1762286889187,0.69614623,100560.0,100550.0,0.0001855]
[1762286889646,0.53888623,100560.0,100550.0,0.0500355]
[1762286889857,0.34,100560.0,100550.0,0.24894151]
[1762286890081,0.2804592,100590.0,100570.0,0.1988557]
[1762286890082,0.04545,100590.0,100570.0,0.1988557]
[1762286890286,0.19882749,100590.0,100570.0,0.1988557]
[1762286890548,0.20876511,100600.0,100580.0,0.35453651]
[1762286890759,0.19882692,100590.0,100580.0,0.06053]
[1762286890967,0.20876511,100600.0,100580.0,0.06053]
[1762286891187,0.20876511,100600.0,100580.0,0.35453668]
[1762286891611,0.53882692,100590.0,100560.0,0.30396424]
[1762286891901,0.63081692,100590.0,100580.0,0.001]
[1762286892112,0.29081692,100590.0,100580.0,0.001]
[1762286892289,0.60067692,100590.0,100580.0,0.001]
[1762286892450,0.60067692,100590.0,100570.0,0.19886579]
[1762286892650,0.53882692,100590.0,100570.0,0.29402579]
[1762286892901,0.53882692,100590.0,100570.0,0.29402646]
[1762286893685,0.19884668,100580.0,100560.0,0.20886991]
[1762286893883,0.19886646,100570.0,100560.0,0.0952]
[1762286894084,0.19884668,100580.0,100570.0,0.06053]
[1762286894261,0.59593826,100590.0,100570.0,0.35455646]
[1762286894464,0.59593826,100590.0,100580.0,0.01286]
[1762286894465,0.53882804,100590.0,100580.0,0.01286]
[1762286894688,0.53882804,100590.0,100580.0,0.10802]
[1762286894892,0.34,100590.0,100580.0,0.30686668]
[1762286895117,0.53882692,100590.0,100580.0,0.01286]
[1762286895354,0.19880715,100600.0,100580.0,0.1239125]
[1762286895527,0.19880715,100600.0,100570.0,0.30392708]
[1762286895528,0.24599692,100590.0,100570.0,0.30392708]
[1762286895699,0.29079715,100600.0,100580.0,0.002]
[1762286895983,0.24599692,100590.0,100580.0,0.02913]
[1762286896198,0.39983692,100590.0,100580.0,0.002]
[1762286896410,3.73983692,100590.0,100580.0,0.002]
[1762286896637,3.758035,100590.0,100580.0,0.00204]
[1762286896973,3.758035,100590.0,100580.0,0.0005464]
[1762286897596,0.53886646,100570.0,100560.0,4e-05]
[1762286897770,0.57354454,100570.0,100560.0,4e-05]
[1762286897975,0.66553454,100570.0,100560.0,4e-05]
[1762286898625,0.64733646,100570.0,100560.0,4e-05]
[1762286899254,0.34,100570.0,100560.0,0.35461623]
[1762286899467,0.19886646,100570.0,100560.0,4e-05]
[1762286899657,0.69270646,100570.0,100560.0,4e-05]
[1762286899861,0.69270646,100570.0,100560.0,8e-05]
[1762286900068,3.69270646,100570.0,100560.0,8e-05]
[1762286900239,3.69570646,100570.0,100560.0,8e-05]
[1762286900682,3.73188874,100570.0,100560.0,8e-05]
[1762286900884,3.73188874,100570.0,100540.0,0.0002]
[1762286900885,0.19890601,100550.0,100540.0,0.0002]
[1762286901025,0.19890601,100550.0,100540.0,0.00068604]
[1762286901026,3.38198311,100550.0,100540.0,0.00068604]
[1762286901440,3.35229601,100550.0,100540.0,0.00068604]
[1762286901645,0.19894558,100530.0,100520.0,4e-05]
[1762286901877,0.21587558,100530.0,100520.0,0.00018566]
[1762286902071,0.30786558,100530.0,100520.0,0.00018566]
[1762286903442,0.64786558,100530.0,100520.0,0.00018566]
[1762286903850,0.55587558,100530.0,100520.0,0.00170592]
[1762286904055,0.69278558,100530.0,100520.0,0.00170592]
[1762286904266,0.69578558,100530.0,100520.0,0.00170592]
[1762286904953,0.69278558,100530.0,100520.0,0.00170592]
[1762286905493,0.69378558,100530.0,100520.0,0.00170592]
[1762286905718,0.341,100530.0,100520.0,0.2612013]
[1762286905925,0.19994558,100530.0,100520.0,0.06223592]
[1762286906132,0.19994558,100530.0,100520.0,0.00170592]
[1762286906338,0.69378558,100530.0,100520.0,0.00170592]
[1762286906539,0.69278558,100530.0,100520.0,0.00170592]
[1762286906949,0.69578558,100530.0,100520.0,0.00170592]
[1762286907091,0.69278558,100530.0,100520.0,0.00170592]
[1762286907478,0.69378558,100530.0,100520.0,0.00170592]
[1762286907733,0.69278558,100530.0,100520.0,0.00170592]
[1762286907977,0.53896538,100520.0,100510.0,0.025]
[1762286908222,3.67813538,100520.0,100510.0,0.025]
[1762286908430,0.67813538,100520.0,100510.0,0.025]
[1762286909194,0.58614538,100520.0,100510.0,0.025]
[1762286909396,0.0307,100520.0,100510.0,0.25111517]
[1762286909615,0.34,100520.0,100510.0,0.25111517]
[1762286909790,0.35723679,100520.0,100510.0,0.11266]
[1762286909992,0.35723679,100520.0,100510.0,0.31164517]
[1762286910191,0.35123679,100520.0,100510.0,0.40680517]
[1762286910396,0.35423679,100520.0,100510.0,0.40680517]
[1762286910650,0.55320217,100520.0,100510.0,0.11266]
[1762286910832,0.35423679,100520.0,100510.0,0.31164517]
[1762286911046,0.343,100520.0,100510.0,0.40680517]
[1762286911415,0.003,100520.0,100510.0,0.40680517]
[1762286911632,0.003,100520.0,100510.0,0.05213]
[1762286911633,0.20196538,100520.0,100510.0,0.05213]
[1762286911823,0.20196538,100520.0,100510.0,0.30887517]
[1762286912023,0.003,100520.0,100510.0,0.39415517]
[1762286912586,0.54991386,100530.0,100510.0,0.39415517]
[1762286913125,0.19896538,100520.0,100510.0,0.19817]
[1762286913294,0.19896538,100520.0,100510.0,0.19517]
[1762286913515,0.54991386,100530.0,100510.0,0.39515517]
[1762286913719,0.54991386,100530.0,100510.0,0.39415517]
[1762286913857,0.54991386,100530.0,100510.0,0.39440865]
[1762286914056,0.55091386,100530.0,100510.0,0.39440865]
[1762286914272,0.37623538,100520.0,100510.0,0.02529348]
[1762286914473,3.71623538,100520.0,100510.0,0.02529348]
[1762286914691,3.71623538,100520.0,100510.0,1e-08]
[1762286914692,3.74963379,100520.0,100510.0,1e-08]
[1762286915258,3.51160599,100520.0,100510.0,1e-08]
[1762286915679,3.47542371,100520.0,100510.0,1e-08]
[1762286915853,3.50531766,100520.0,100510.0,1e-08]
[1762286916056,3.51131766,100520.0,100510.0,1e-08]
[1762286916455,0.48142371,100520.0,100510.0,1e-08]
[1762286918849,0.47542371,100520.0,100510.0,1e-08]
[1762286919079,0.47542371,100520.0,100510.0,0.04257001]
[1762286919330,0.47942371,100520.0,100510.0,0.04257001]
[1762286919950,0.47542371,100520.0,100510.0,1e-08]
[1762286920288,0.47742371,100520.0,100510.0,1e-08]
[1762286921519,0.47742371,100520.0,100510.0,0.04267001]
[1762286921926,0.47742371,100520.0,100510.0,0.18635001]
[1762286922482,0.47542371,100520.0,100510.0,0.18635001]
[1762286923860,0.19896538,100520.0,100510.0,0.38533518]
[1762286924357,0.20991386,100530.0,100510.0,0.38533518]
[1762286924608,0.20991386,100530.0,100520.0,0.14368]
[1762286925239,0.54991386,100530.0,100520.0,0.14368]
[1762286925371,0.53894558,100530.0,100520.0,0.15358205]
[1762286925573,0.34,100530.0,100520.0,0.35254743]
[1762286925786,0.19894558,100530.0,100520.0,0.35254743]
[1762286925984,0.19894558,100530.0,100520.0,0.15358205]
[1762286927545,0.21015303,100530.0,100520.0,0.15358205]
[1762286927964,0.21015303,100530.0,100510.0,0.04267001]
[1762286927965,0.19896538,100520.0,100510.0,0.04267001]
[1762286928380,0.53896538,100520.0,100510.0,0.04267001]
[1762286928835,0.55716411,100520.0,100510.0,0.04267001]
[1762286929461,0.56016411,100520.0,100510.0,0.18635001]
[1762286929676,0.56016411,100520.0,100510.0,0.09971001]
[1762286929874,0.56016411,100520.0,100510.0,0.04267001]
[1762286930503,0.56016411,100520.0,100510.0,1e-08]
[1762286931288,0.55716411,100520.0,100510.0,1e-08]
[1762286931794,0.55816411,100520.0,100510.0,1e-08]
[1762286932028,0.55716411,100520.0,100510.0,1e-08]
[1762286932241,0.56016411,100520.0,100510.0,1e-08]
[1762286932644,0.55716411,100520.0,100510.0,1e-08]
[1762286932857,0.56216411,100520.0,100510.0,1e-08]
[1762286933533,0.56216411,100520.0,100510.0,0.04267001]
[1762286933738,0.19898517,100510.0,100500.0,1.06712363]
[1762286933858,0.2171839,100510.0,100500.0,1.12416363]
[1762286934782,0.19898517,100510.0,100500.0,1.12416363]
[1762286935201,0.19998517,100510.0,100500.0,1.12416363]
[1762286935406,0.001,100510.0,100500.0,1.3231686]
[1762286935817,0.19998517,100510.0,100500.0,1.12416363]
[1762286936026,0.53998517,100510.0,100500.0,1.12416363]
[1762286936269,0.53998517,100510.0,100500.0,1.3231686]
[1762286936270,0.341,100510.0,100500.0,1.3231686]
[1762286936480,0.53998517,100510.0,100500.0,1.3231686]
[1762286936684,0.53998517,100510.0,100500.0,1.12416363]
[1762286936896,0.341,100510.0,100500.0,1.3231686]
[1762286937107,0.53998517,100510.0,100500.0,1.3231686]
[1762286937323,0.341,100510.0,100500.0,1.3231686]
[1762286937530,0.341,100510.0,100500.0,1.33307065]
[1762286937531,0.001,100510.0,100500.0,1.33307065]
[1762286937643,0.19998517,100510.0,100500.0,1.13406568]
[1762286938062,0.001,100510.0,100500.0,1.33307065]
[1762286938886,0.19898517,100510.0,100500.0,1.33307065]
[1762286939087,0.53896683,100520.0,100500.0,1.33307065]
[1762286939287,0.53896538,100520.0,100510.0,0.38533517]
[1762286939493,0.53896538,100520.0,100510.0,0.18635]
[1762286939692,0.53896538,100520.0,100510.0,0.38533517]
[1762286940328,0.53896538,100520.0,100510.0,0.18635]
[1762286941333,0.53996538,100520.0,100510.0,0.09971]
[1762286941540,0.59996538,100520.0,100510.0,0.04267]
[1762286941752,0.19898517,100510.0,100500.0,0.98073715]
[1762286942194,0.19898517,100510.0,100500.0,1.03777715]
[1762286942598,0.19898517,100510.0,100500.0,1.12441715]
[1762286942758,0.21718667,100510.0,100500.0,1.12441715]
[1762286944164,0.24077667,100510.0,100500.0,1.03877715]
[1762286944368,0.24077667,100510.0,100500.0,1.18827715]
[1762286944570,0.21718667,100510.0,100500.0,1.47292212]
[1762286944772,0.0182015,100510.0,100500.0,1.47292212]
[1762286945005,0.0182015,100510.0,100500.0,1.48282417]
[1762286945216,0.0192015,100510.0,100500.0,1.2838192]
[1762286945440,0.21718667,100510.0,100500.0,1.1343192]
[1762286945750,0.21718667,100510.0,100500.0,1.0476792]
[1762286945974,0.21718667,100510.0,100500.0,1.1353192]
[1762286946229,0.21718667,100510.0,100500.0,1.1343192]
[1762286946433,0.21718667,100510.0,100500.0,1.12441715]
[1762286946633,0.0182015,100510.0,100500.0,1.32342212]
[1762286947046,0.0182015,100510.0,100500.0,2.06583841]
[1762286947492,0.01919669,100510.0,100500.0,1.36950645]
[1762286947695,0.01819669,100510.0,100500.0,2.06583841]
[1762286947846,0.20889374,100530.0,100510.0,0.19897977]
[1762286948054,0.22708691,100530.0,100520.0,0.09971]
[1762286948378,0.22708691,100530.0,100520.0,0.18635]
[1762286948630,0.01819317,100530.0,100520.0,0.38531538]
[1762286948859,0.21713875,100530.0,100520.0,0.18635]
[1762286949467,0.21813875,100530.0,100520.0,0.18635]
[1762286949674,0.01919317,100530.0,100520.0,0.38531538]
[1762286949886,0.21813875,100530.0,100520.0,0.18635]
[1762286950092,0.21813875,100530.0,100520.0,0.01900106]
[1762286950093,0.59158875,100530.0,100520.0,0.01900106]
[1762286950699,0.53896538,100520.0,100510.0,0.04327]
[1762286950886,0.19898517,100510.0,100500.0,0.98073715]
[1762286951123,0.59863834,100510.0,100500.0,0.98073715]
[1762286951370,0.68541834,100510.0,100500.0,0.98073715]
[1762286951602,0.59863834,100510.0,100500.0,0.98073715]
[1762286951993,0.68541834,100510.0,100500.0,0.98073715]
[1762286952650,0.68841834,100510.0,100500.0,0.98073715]
[1762286952853,3.68841834,100510.0,100500.0,0.51567589]
[1762286953034,3.71810544,100510.0,100500.0,0.51567589]
[1762286953395,3.68841834,100510.0,100500.0,0.51567589]
[1762286953973,3.75128772,100510.0,100500.0,0.00777938]
[1762286954192,3.68541834,100510.0,100500.0,0.00777938]
[1762286954401,0.59863834,100510.0,100500.0,0.00777938]
[1762286954807,0.60663834,100510.0,100500.0,0.00777938]
[1762286955022,0.55717834,100510.0,100500.0,0.00777938]
[1762286955436,0.56117834,100510.0,100500.0,0.14755938]
[1762286955634,0.55717834,100510.0,100500.0,0.14755938]
[1762286957146,0.56017834,100510.0,100500.0,0.14755938]
[1762286957356,0.56017834,100510.0,100500.0,0.34656435]
[1762286957357,0.01819317,100510.0,100500.0,0.34656435]
[1762286957562,0.19896538,100520.0,100500.0,0.34656435]
[1762286957766,0.19998517,100510.0,100500.0,0.14755938]
[1762286957975,0.19898517,100510.0,100500.0,0.14755938]
[1762286958206,0.19896538,100520.0,100510.0,0.13978]
[1762286958910,0.19896538,100520.0,100510.0,0.05888]
[1762286959110,0.19896538,100520.0,100510.0,0.13978]
[1762286959385,0.24234285,100530.0,100510.0,0.33876517]
[1762286959892,0.20889285,100530.0,100510.0,0.19898517]
[1762286960142,0.20889285,100530.0,100520.0,0.05888]
[1762286960369,0.20889285,100530.0,100520.0,0.33874538]
[1762286960625,0.22033045,100540.0,100520.0,0.33874538]
[1762286960914,0.56081469,100540.0,100530.0,0.12417]
[1762286961136,0.56081469,100540.0,100530.0,0.18305]
[1762286962282,0.19894558,100530.0,100520.0,0.00990205]
[1762286962498,0.19894558,100530.0,100500.0,0.05104938]
[1762286962499,0.53898517,100510.0,100500.0,0.05104938]
[1762286962939,0.58044517,100510.0,100500.0,0.00777938]
[1762286963959,0.58344517,100510.0,100500.0,0.00777938]
[1762286964596,0.54198517,100510.0,100500.0,0.00777938]
[1762286964813,0.54198517,100510.0,100500.0,0.14755938]
[1762286964814,0.20198517,100510.0,100500.0,0.14755938]
[1762286965247,0.20198517,100510.0,100500.0,0.34656435]
[1762286965471,0.20198517,100510.0,100500.0,0.00777938]
[1762286965677,0.20198517,100510.0,100500.0,0.14755938]
[1762286965880,0.20198517,100510.0,100500.0,0.06665938]
[1762286966084,0.20198517,100510.0,100500.0,0.19082938]
[1762286966322,0.19898517,100510.0,100500.0,0.19082938]
[1762286966565,0.19898517,100510.0,100500.0,0.19282938]
[1762286966777,0.19898517,100510.0,100500.0,0.19082938]
[1762286966993,0.19898517,100510.0,100500.0,0.10992938]
[1762286967840,0.19898517,100510.0,100500.0,0.30893435]
[1762286968050,0.19898517,100510.0,100500.0,0.25942938]
[1762286968299,0.34,100510.0,100500.0,0.25942938]
[1762286968509,0.53898325,100520.0,100500.0,0.53933435]
[1762286968717,0.53898325,100520.0,100510.0,0.18305]
[1762286968928,0.55720845,100520.0,100510.0,0.18305]
[1762286969792,0.55721092,100520.0,100510.0,0.10215]
[1762286970211,0.55721092,100520.0,100510.0,0.18305]
[1762286970436,0.55721092,100520.0,100510.0,0.17805]
[1762286971308,0.55721092,100520.0,100510.0,0.04327]
[1762286971529,0.19898517,100510.0,100500.0,0.15727938]
[1762286971773,0.21721284,100510.0,100500.0,0.24125938]
[1762286971980,0.19898517,100510.0,100500.0,0.29689938]
[1762286972410,0.21720817,100510.0,100500.0,0.29689938]
[1762286972834,0.19898517,100510.0,100500.0,0.29689938]
[1762286973071,0.19898517,100510.0,100500.0,0.15727938]
[1762286973281,0.24192517,100510.0,100500.0,0.00777938]
[1762286973712,0.24192517,100510.0,100500.0,0.14739938]